fUSD/lending_fUSD_20260213
["ID","MTS","AMOUNT","RATE_DAILY","PERIOD"]
[405341987,1771019441513,-665.02005205,0.00017999,2]
[405341988,1771019441523,-665.02005205,0.00017999,2]
[405341989,1771019441532,-665.02005205,0.00017999,2]
[405341990,1771019441542,-665.02005205,0.00017999,2]
[405341991,1771019441551,-665.02005205,0.00017999,2]
[405341992,1771019441561,-665.02005205,0.00017999,2]
[405341993,1771019441571,-665.02005205,0.00017999,2]
[405341994,1771019441580,-665.02005205,0.00017999,2]
[405341995,1771019441589,-665.02005205,0.00017999,2]
[405341996,1771019441599,-665.02005205,0.00017999,2]
[405341997,1771019441608,-665.02005205,0.00017999,2]
[405341998,1771019441618,-665.02005205,0.00017999,2]
[405341999,1771019441627,-665.02005205,0.00017999,2]
[405342000,1771019441636,-665.02005205,0.00017999,2]
[405342001,1771019441645,-665.02005205,0.00017999,2]
[405342002,1771019441655,-665.02005205,0.00017999,2]
[405342003,1771019441664,-665.02005205,0.00017999,2]
[405342004,1771019441673,-665.02005205,0.00017999,2]
[405342005,1771019441683,-665.02005205,0.00017999,2]
[405342006,1771019441692,-665.02005205,0.00017999,2]
[405342007,1771019441701,-665.02005205,0.00017999,2]
[405342008,1771019441711,-665.02005205,0.00017999,2]
[405342009,1771019441720,-665.02005205,0.00017999,2]
[405342010,1771019441729,-665.02005205,0.00017999,2]
[405342011,1771019441739,-665.02005205,0.00017999,2]
[405342012,1771019441748,-665.02005205,0.00017999,2]
[405342013,1771019441757,-665.02005205,0.00017999,2]
[405342014,1771019441767,-665.02005205,0.00017999,2]
[405342015,1771019441776,-665.02005205,0.00017999,2]
[405342016,1771019441785,-665.02005205,0.00017999,2]
[405342017,1771019441795,-665.02005205,0.00017999,2]
[405342018,1771019441804,-665.02005205,0.00017999,2]
[405342019,1771019441813,-665.02005205,0.00017999,2]
[405342020,1771019441822,-665.02005205,0.00017999,2]
[405342021,1771019441832,-665.02005205,0.00017999,2]
[405342022,1771019441842,-665.02005205,0.00017999,2]
[405342023,1771019441851,-925.02898811,0.00017999,2]
[405342024,1771019441861,-925.02898811,0.00017999,2]
[405342025,1771019441870,-925.02898811,0.00017999,2]
[405342026,1771019441880,-925.02898811,0.00017999,2]
[405342027,1771019441889,-925.02898811,0.00017999,2]
[405342028,1771019441898,-925.02898811,0.00017999,2]
[405342029,1771019441908,-925.02898811,0.00017999,2]
[405342030,1771019441918,-925.02898811,0.00017999,2]
[405342031,1771019441927,-925.02898811,0.00017999,2]
[405342032,1771019441937,-925.02898811,0.00017999,2]
[405342033,1771019441947,-925.02898811,0.00017999,2]
[405342034,1771019441956,-925.02898811,0.00017999,2]
[405342035,1771019441966,-925.02898811,0.00017999,2]
[405342036,1771019441975,-925.02898811,0.00017999,2]
[405342037,1771019441984,-925.02898811,0.00017999,2]
[405342038,1771019441994,-925.02898811,0.00017999,2]
[405342039,1771019442004,-925.02898811,0.00017999,2]
[405342040,1771019442013,-925.02898811,0.00017999,2]
[405342041,1771019442023,-925.02898811,0.00017999,2]
[405342042,1771019442032,-925.02898811,0.00017999,2]
[405342043,1771019442042,-925.02898811,0.00017999,2]
[405342044,1771019442051,-925.02898811,0.00017999,2]
[405342045,1771019442061,-925.02898811,0.00017999,2]
[405342046,1771019442071,-925.02898811,0.00017999,2]
[405342047,1771019442081,-925.02898811,0.00017999,2]
[405342048,1771019442090,-925.02898811,0.00017999,2]
[405342049,1771019442099,-925.02898811,0.00017999,2]
[405342050,1771019442109,-925.02898811,0.00017999,2]
[405342051,1771019442119,-925.02898811,0.00017999,2]
[405342052,1771019442128,-925.0289882,0.00017999,2]
[405342053,1771019442138,-1146644.12837408,0.00018,2]
[405342060,1771019442398,-6919.86445026,0.00018,2]
[405342062,1771019442409,-2542.23565072,0.00018,2]
[405342064,1771019442420,-597.83333328,0.00018,2]
[405342075,1771019445510,-1507.9362338,0.000179,2]
[405342076,1771019445520,-645.29666159,0.000179,2]
[405342077,1771019445530,-3136.51857581,0.000179,2]
[405342078,1771019445540,-942.47465855,0.000179,2]
[405342079,1771019445551,-1016.76915779,0.000179,2]
[405342080,1771019445561,-295.60332335,0.00018,2]
[405342115,1771020631736,-2799.67,0.00013001,2]
[405342116,1771020631745,-257.0,0.00013001,2]
[405342117,1771020631757,-186.39112985,0.00013055,2]
[405342118,1771020631767,-353.83408348,0.00014301,2]
[405342119,1771020631776,-500.0,0.00015285,2]
[405342120,1771020631786,-174.22051898,0.00015285,2]
[405342121,1771020631795,-166.66,0.00015386,2]
[405342122,1771020631805,-626.80009257,0.00015392,2]
[405342123,1771020631815,-1200.0,0.00015397,2]
[405342124,1771020631824,-19888.792667,0.00015398,2]
[405342125,1771020631833,-186.57752098,0.0001544,2]
[405342126,1771020631843,-215.98675667,0.00015479,2]
[405342127,1771020631852,-151.0,0.00015486,2]
[405342128,1771020631862,-300.0,0.00015487,2]
[405342129,1771020631871,-1000.0,0.00015488,2]
[405342130,1771020631881,-649.34752281,0.00015488,2]
[405342131,1771020631890,-283.22598168,0.00015488,2]
[405342132,1771020631899,-500.0,0.00015488,2]
[405342133,1771020631909,-157.78785452,0.00015488,2]
[405342134,1771020631918,-500.0,0.00015488,2]
[405342135,1771020631927,-500.0,0.00015488,2]
[405342136,1771020631937,-500.0,0.00015488,2]
[405342137,1771020631946,-500.0,0.00015488,2]
[405342138,1771020631955,-500.0,0.00015488,2]
[405342139,1771020631964,-500.0,0.00015488,2]
[405342140,1771020631974,-500.0,0.00015488,2]
[405342141,1771020631983,-500.0,0.00015488,2]
[405342142,1771020631992,-500.0,0.00015488,2]
[405342143,1771020632001,-500.0,0.00015488,2]
[405342144,1771020632011,-500.0,0.00015488,2]
[405342145,1771020632020,-500.0,0.00015488,2]
[405342146,1771020632029,-500.0,0.00015488,2]
[405342147,1771020632039,-500.0,0.00015488,2]
[405342148,1771020632048,-500.0,0.00015488,2]
[405342149,1771020632058,-500.0,0.00015488,2]
[405342150,1771020632068,-500.0,0.00015488,2]
[405342151,1771020632077,-500.0,0.00015488,2]
[405342152,1771020632087,-500.0,0.00015488,2]
[405342153,1771020632096,-532.57169563,0.00015488,2]
[405342154,1771020632105,-500.0,0.00015488,2]
[405342155,1771020632114,-500.0,0.00015488,2]
[405342156,1771020632124,-500.0,0.00015488,2]
[405342157,1771020632134,-500.0,0.00015488,2]
[405342158,1771020632143,-540.36620187,0.00015488,2]
[405342159,1771020632152,-40235.17503127,0.00015489,2]
[405342160,1771020632409,-8468.8,0.00015489,2]
[405342161,1771020632421,-7382.376725,0.00015489,2]
[405342162,1771020632433,-1247.39962148,0.00015489,2]
[405342163,1771020632444,-542323.02423706,0.00015489,2]
[405342164,1771020632455,-199509.94271334,0.00015489,2]
[405342165,1771020632467,-41298.03751901,0.00015489,2]
[405342166,1771020632478,-43195.21047756,0.00015489,2]
[405342167,1771020632488,-1254.41808677,0.00015489,2]
[405342168,1771020632503,-3710.00000002,0.00015489,2]
[405342169,1771020632514,-974.17884844,0.00015489,2]
[405342170,1771020632544,-495.19096835,0.00015489,2]
[405342172,1771020637679,-445.915675,0.00015489,2]
[405342173,1771020637848,-292.43601662,0.00015489,2]
[405342265,1771020639776,-3608.27472446,0.00015489,2]
[405342266,1771020639841,-505.888,0.00015489,2]
[405342268,1771020641245,156.97,0.00011259,2]
[405342269,1771020641292,156.97,0.00012465,2]
[405342285,1771020645482,-266.40447413,0.00015489,2]
[405342288,1771020645494,-594.70658335,0.00015489,2]
[405342293,1771020645661,-477.54264,0.00015489,2]
[405342300,1771020645723,-651.0,0.00015489,2]
[405342311,1771020645834,-1896.21,0.00015489,2]
[405342319,1771020646563,-156.97,0.00013672,2]
[405342320,1771020646573,-127.12781926,0.00015489,2]
[405342321,1771020646584,-822.02574206,0.00015489,2]
[405342328,1771021116502,1000.0,0.00012,2]
[405342329,1771021175132,1000.0,0.00012,2]
[405342337,1771021282960,167.79,0.0001191,2]
[405342339,1771021612561,1930.47210275,0.000125,2]
[405342340,1771021612599,621.76957416,0.000125,2]
[405342341,1771021612636,1273.03725037,0.000125,2]
[405342342,1771021612935,801.03815133,0.000125,2]
[405342352,1771021757134,-300.0,0.00012899,2]
[405342353,1771021757154,-4339.12155,0.000129,2]
[405342376,1771021831830,-501.40847387,0.00012834,2]
[405342387,1771021831947,-823.09871013,0.00012834,2]
[405342388,1771021831957,-1200.0,0.00012899,2]
[405342389,1771021831966,-300.0,0.00012899,2]
[405342390,1771021831977,-256.0,0.00012899,2]
[405342391,1771021831986,-52615.55097511,0.000129,2]
[405342392,1771021831995,-500.0,0.00013747,2]
[405342393,1771021832006,-500.0,0.00014189,2]
[405342394,1771021832015,-1680.0,0.00014189,2]
[405342395,1771021832024,-500.0,0.0001419,2]
[405342396,1771021832033,-5911.72,0.00014599,2]
[405342397,1771021832042,-200.11623662,0.000146,2]
[405342398,1771021832052,-500.0,0.000147,2]
[405342399,1771021832061,-2640.45,0.00014778,2]
[405342400,1771021832070,-180.68,0.000148,2]
[405342401,1771021832079,-161.6800168,0.000148,2]
[405342402,1771021832088,-156.97,0.00014878,2]
[405342403,1771021832097,-2017.58,0.00014899,2]
[405342404,1771021832107,-250.0,0.00015182,2]
[405342405,1771021832116,-349.06,0.00015206,2]
[405342406,1771021832126,-4686.68962739,0.00015289,2]
[405342407,1771021832135,-130248.05828477,0.0001534,2]
[405342408,1771021832144,-1624.13400692,0.00015389,2]
[405342409,1771021832154,-1000.0,0.00015428,2]
[405342410,1771021832163,-177.16,0.00015458,2]
[405342411,1771021832172,-200.0,0.0001548,2]
[405342412,1771021832182,-151.0,0.00015486,2]
[405342413,1771021832191,-1000.0,0.00015488,2]
[405342414,1771021832200,-366.198,0.00015488,2]
[405342415,1771021832208,-500.0,0.00015488,2]
[405342416,1771021832217,-500.0,0.00015488,2]
[405342417,1771021832227,-500.0,0.00015488,2]
[405342418,1771021832236,-500.0,0.00015488,2]
[405342419,1771021832245,-649.87443744,0.00015488,2]
[405342420,1771021832255,-500.0,0.00015488,2]
[405342421,1771021832263,-529.97276172,0.00015488,2]
[405342422,1771021832272,-500.0,0.00015488,2]
[405342423,1771021832282,-500.0,0.00015488,2]
[405342424,1771021832291,-431.11,0.00015488,2]
[405342425,1771021832301,-1293.29335395,0.00015488,2]
[405342426,1771021832310,-500.0,0.00015488,2]
[405342427,1771021832319,-500.0,0.00015488,2]
[405342428,1771021832328,-392.50796618,0.00015488,2]
[405342429,1771021832338,-500.0,0.00015488,2]
[405342430,1771021832347,-500.0,0.00015488,2]
[405342431,1771021832355,-2722.16,0.00015488,2]
[405342432,1771021832365,-2722.16,0.00015488,2]
[405342433,1771021832374,-1223.47,0.00015488,2]
[405342434,1771021832383,-1223.47,0.00015488,2]
[405342435,1771021832393,-992.8968205,0.00015489,2]
[405342436,1771021832401,-2684.9289961,0.00015489,2]
[405342437,1771021832411,-3254.2934504,0.00015489,2]
[405342438,1771021832420,-147860.49787996,0.00015489,2]
[405342440,1771021837883,-640.39747628,0.00015489,2]
[405342441,1771021837894,-837.57754225,0.00015489,2]
[405342484,1771021845813,-3173.0,0.00015489,2]
[405342485,1771021845984,-915.39577384,0.00015489,2]
[405342494,1771022181144,-250.0,0.00015,2]
[405342495,1771022181166,-171.09696683,0.00015,2]
[405342496,1771022181187,-3240.0,0.00015267,2]
[405342497,1771022181208,-177.5662755,0.00015385,2]
[405342498,1771022181230,-151.0,0.00015385,2]
[405342499,1771022181252,-300.0,0.00015386,2]
[405342500,1771022181274,-1200.0,0.00015387,2]
[405342501,1771022181297,-300.0,0.00015387,2]
[405342502,1771022181319,-181.0,0.00015387,2]
[405342503,1771022181340,-177.5662755,0.00015388,2]
[405342504,1771022181362,-7711.77048217,0.00015388,2]
[405342535,1771022845841,2787.31,0.00011671,2]
[405342538,1771023031964,-993.77,0.00014501,2]
[405342540,1771023031974,-1416.85805522,0.00014508,2]
[405342541,1771023031987,-435.56194478,0.00014508,2]
[405342542,1771023031997,-500.0,0.00014537,2]
[405342543,1771023032007,-618.6274083,0.00014542,2]
[405342544,1771023032019,-581.3725917,0.00014542,2]
[405342545,1771023032029,-1937.41247734,0.00014543,2]
[405342546,1771023032045,-782.76857672,0.00014543,2]
[405342547,1771023032097,-533.76525737,0.00014543,2]
[405342548,1771023032109,-739.83242181,0.00014543,2]
[405342549,1771023032122,-6612.91126676,0.00014543,2]
[405342550,1771023032131,-500.0,0.00014563,2]
[405342551,1771023032141,-325.38,0.00014617,2]
[405342552,1771023032151,-1551.74,0.00014632,2]
[405342553,1771023032162,-200.0,0.00014681,2]
[405342555,1771023032172,-993.77,0.00015226,2]
[405342556,1771023032182,-2508.77982663,0.00015272,2]
[405342557,1771023032194,-903.5901471,0.00015272,2]
[405342558,1771023032218,-1422.63899574,0.00015272,2]
[405342559,1771023032231,-390.59415021,0.00015272,2]
[405342561,1771023032243,-1703.04317917,0.00015272,2]
[405342563,1771023032255,-460.78178587,0.00015272,2]
[405342587,1771023038519,-3623.50144814,0.00015272,2]
[405342597,1771023038606,-818.34588,0.00015272,2]
[405342599,1771023038618,-1723.01458714,0.00015272,2]
[405342601,1771023038627,-1000.0,0.00015288,2]
[405342603,1771023038636,-1051.8937045,0.00015288,2]
[405342757,1771023040233,-865.01,0.00015288,2]
[405342772,1771023040372,-1176.70367997,0.00015288,2]
[405342775,1771023040392,-847.24883715,0.00015288,2]
[405342831,1771023043909,-478.51655685,0.00015288,2]
[405342832,1771023044033,-6578.52212309,0.00015288,2]
[405342833,1771023044952,-1160.32529984,0.00015288,2]
[405342834,1771023044963,-4352.763,0.00015288,2]
[405342837,1771023045991,-16321.1417986,0.00015288,2]
[405342839,1771023046000,-2500.0,0.00015288,2]
[405342841,1771023046010,-1513.7475,0.00015288,2]
[405342842,1771023046019,-2984.1518,0.00015288,2]
[405342843,1771023046029,-4358.54655651,0.00015288,2]
[405342844,1771023046038,-1000.0,0.00015314,2]
[405342845,1771023046048,-500.0,0.00015315,2]
[405342846,1771023046058,-1648.26360621,0.0001532,2]
[405342847,1771023046067,-200.0,0.00015379,2]
[405342848,1771023046077,-151.0,0.00015385,2]
[405342849,1771023046087,-151.0,0.00015385,2]
[405342850,1771023046096,-500.0,0.00015387,2]
[405342851,1771023046106,-500.0,0.00015387,2]
[405342852,1771023046115,-500.0,0.00015387,2]
[405342853,1771023046124,-2495.31,0.00015387,2]
[405342854,1771023046135,-500.0,0.00015387,2]
[405342855,1771023046144,-2440.7200878,0.00015388,2]
[405342856,1771023046154,-744.6726154,0.00015388,2]
[405342857,1771023046164,-150.0,0.00015414,2]
[405342858,1771023046173,-151.0,0.00015417,2]
[405342859,1771023046183,-500.0,0.00015419,2]
[405342860,1771023046192,-500.0,0.00015419,2]
[405342861,1771023046201,-500.0,0.00015419,2]
[405342862,1771023046212,-500.0,0.00015419,2]
[405342863,1771023046222,-500.0,0.00015419,2]
[405342864,1771023046231,-500.0,0.00015419,2]
[405342865,1771023046241,-500.0,0.00015419,2]
[405342866,1771023046250,-500.0,0.00015419,2]
[405342867,1771023046260,-500.0,0.00015419,2]
[405342868,1771023046269,-500.0,0.00015419,2]
[405342869,1771023046279,-500.0,0.00015419,2]
[405342870,1771023046293,-500.0,0.00015419,2]
[405342871,1771023046302,-500.0,0.00015419,2]
[405342872,1771023046312,-247.83758001,0.00015419,2]
[405342873,1771023046322,-500.0,0.00015419,2]
[405342874,1771023046333,-500.0,0.00015419,2]
[405342875,1771023046343,-500.0,0.00015419,2]
[405342876,1771023046352,-500.0,0.00015419,2]
[405342877,1771023046365,-500.0,0.00015419,2]
[405342878,1771023046374,-500.0,0.00015419,2]
[405342879,1771023046384,-500.0,0.00015419,2]
[405342881,1771023046394,-500.0,0.00015419,2]
[405342882,1771023046403,-500.0,0.00015419,2]
[405342883,1771023046412,-500.0,0.00015419,2]
[405342884,1771023046421,-500.0,0.00015419,2]
[405342885,1771023046432,-500.0,0.00015419,2]
[405342886,1771023046442,-500.0,0.00015419,2]
[405342887,1771023046451,-30843.42818641,0.0001542,2]
[405342888,1771023046504,-422.145,0.0001542,2]
[405342890,1771023046516,-973.00923496,0.0001542,2]
[405342894,1771023092064,570.62,0.00010683,2]
[405342895,1771023092361,570.62,0.00010924,2]
[405342896,1771023092569,570.62,0.00011165,2]
[405342897,1771023092766,570.62,0.00011406,2]
[405342898,1771023092996,570.62,0.00011647,2]
[405342899,1771023093217,570.62,0.00011888,2]
[405342900,1771023093420,570.62,0.00012129,2]
[405342901,1771023093625,570.62,0.0001237,2]
[405342922,1771024116734,172.22,0.00011057,2]
[405342932,1771024232154,-570.62,0.00012611,2]
[405342933,1771024232164,-2.22682148,0.00012852,2]
[405342934,1771024232176,-568.39317852,0.00012852,2]
[405342935,1771024232185,-570.62,0.00013092,2]
[405342936,1771024232195,-166.66,0.00013103,2]
[405342937,1771024232205,-570.62,0.00013333,2]
[405342938,1771024232215,-166.66,0.00013379,2]
[405342939,1771024232224,-66.69313646,0.00013574,2]
[405342940,1771024232280,-503.92686354,0.00013574,2]
[405342941,1771024232290,-166.66,0.00013655,2]
[405342942,1771024232300,-283.35504961,0.00013815,2]
[405342950,1771024238246,-287.26495039,0.00013815,2]
[405342951,1771024238257,-314.15,0.00013821,2]
[405342952,1771024238267,-235.93504961,0.00013836,2]
[405342953,1771024238309,-11.87495039,0.00013836,2]
[405342954,1771024238319,-843.6,0.00013863,2]
[405342955,1771024238329,-250.0,0.00013872,2]
[405342956,1771024238340,-166.66,0.00013931,2]
[405342957,1771024238350,-1632.98,0.0001397,2]
[405342958,1771024238361,-1200.0,0.00014055,2]
[405342959,1771024238371,-570.62,0.00014056,2]
[405342960,1771024238385,-200.0,0.00014135,2]
[405342961,1771024238395,-500.0,0.00014135,2]
[405342962,1771024238405,-200.0,0.00014135,2]
[405342963,1771024238415,-300.0,0.00014139,2]
[405342964,1771024238425,-151.0,0.0001414,2]
[405342965,1771024238435,-150.0,0.00014142,2]
[405342966,1771024238444,-20954.55058242,0.00014143,2]
[405342967,1771024238456,-706.55591932,0.00014143,2]
[405342968,1771024238468,-610.00414217,0.00014143,2]
[405342969,1771024238480,-304.0,0.00014143,2]
[405342970,1771024238509,-2768.47356276,0.00014143,2]
[405342971,1771024238521,-1471.61771386,0.00014143,2]
[405342985,1771024240379,-1585.3832149,0.00014143,2]
[405342986,1771024240392,-500.0,0.00014143,2]
[405342987,1771024240476,-420.86114321,0.00014143,2]
[405342988,1771024240488,-1405.08006027,0.00014143,2]
[405342989,1771024240499,-425.63,0.00014143,2]
[405342990,1771024240695,-922.18333418,0.00014143,2]
[405342991,1771024240785,-1587.711,0.00014143,2]
[405342992,1771024240799,-1579.5763362,0.00014143,2]
[405342997,1771024246178,-350.625,0.00014143,2]
[405343009,1771024246994,-512.6900035,0.00014143,2]
[405343017,1771025230886,205.0,9.8e-05,2]
[405343025,1771025431310,-500.0,0.00013332,2]
[405343027,1771025431320,-145.79236201,0.00013375,2]
[405343028,1771025431332,-105.01763799,0.00013375,2]
[405343030,1771025431342,-200.0,0.0001342,2]
[405343032,1771025431351,-3240.0,0.00013479,2]
[405343033,1771025431360,-150.0,0.00013504,2]
[405343034,1771025431370,-596.26,0.00013699,2]
[405343035,1771025431380,-1200.0,0.0001372,2]
[405343036,1771025431389,-4483.52,0.00013721,2]
[405343037,1771025431399,-300.0,0.00013943,2]
[405343038,1771025431409,-831.66563371,0.00013944,2]
[405343039,1771025431419,-500.0,0.00014,2]
[405343040,1771025431430,-500.0,0.00014035,2]
[405343041,1771025431440,-513.0,0.0001411,2]
[405343042,1771025431449,-518.55504295,0.00014129,2]
[405343043,1771025431458,-237.66106357,0.00014135,2]
[405343044,1771025431468,-151.0,0.0001414,2]
[405343045,1771025431478,-151.0,0.0001414,2]
[405343046,1771025431487,-151.0,0.0001414,2]
[405343047,1771025431497,-1000.0,0.00014142,2]
[405343048,1771025431507,-150.0,0.00014142,2]
[405343049,1771025431516,-1830.59281706,0.00014143,2]
[405343052,1771025431536,-71645.64517015,0.00014143,2]
[405343054,1771025431545,-166.66,0.00014207,2]
[405343056,1771025431555,-209.81,0.00014247,2]
[405343058,1771025431563,-1000.0,0.0001429,2]
[405343060,1771025431572,-570.62,0.00014297,2]
[405343062,1771025431581,-151.0,0.00014338,2]
[405343064,1771025431590,-35641.65,0.00014341,2]
[405343066,1771025431600,-1130.19,0.00014358,2]
[405343068,1771025431610,-596.26,0.00014384,2]
[405343070,1771025431619,-200.0,0.00014413,2]
[405343072,1771025431629,-166.66,0.00014483,2]
[405343074,1771025431638,-200.0,0.00014502,2]
[405343076,1771025431648,-4183.71465638,0.00014526,2]
[405343078,1771025431657,-3508.05717223,0.00014527,2]
[405343080,1771025431666,-2500.0,0.00014527,2]
[405343081,1771025431676,-570.62,0.00014538,2]
[405343082,1771025431685,-314.15,0.00014589,2]
[405343083,1771025431694,-151.0,0.00014623,2]
[405343084,1771025431704,-151.0,0.00014623,2]
[405343085,1771025431713,-151.0,0.00014624,2]
[405343086,1771025431722,-500.0,0.00014625,2]
[405343087,1771025431731,-1079.85,0.00014625,2]
[405343088,1771025431741,-500.0,0.00014626,2]
[405343089,1771025431750,-500.0,0.00014626,2]
[405343090,1771025431760,-204.400508,0.00014626,2]
[405343091,1771025431769,-204.400508,0.00014626,2]
[405343092,1771025431778,-204.400508,0.00014626,2]
[405343093,1771025431788,-204.400508,0.00014626,2]
[405343094,1771025431798,-500.0,0.00014626,2]
[405343095,1771025431808,-500.0,0.00014626,2]
[405343096,1771025431817,-151.0,0.00014626,2]
[405343097,1771025431827,-151.0,0.00014626,2]
[405343098,1771025431836,-151.0,0.00014626,2]
[405343099,1771025431845,-151.0,0.00014626,2]
[405343100,1771025431856,-151.0,0.00014626,2]
[405343101,1771025431865,-151.0,0.00014626,2]
[405343102,1771025431875,-151.0,0.00014626,2]
[405343103,1771025431885,-151.0,0.00014626,2]
[405343104,1771025431895,-151.0,0.00014626,2]
[405343105,1771025431904,-151.0,0.00014626,2]
[405343106,1771025431913,-151.0,0.00014626,2]
[405343107,1771025431923,-151.0,0.00014626,2]
[405343108,1771025431932,-151.0,0.00014626,2]
[405343109,1771025431942,-151.0,0.00014626,2]
[405343110,1771025431951,-151.0,0.00014626,2]
[405343111,1771025431961,-151.0,0.00014626,2]
[405343112,1771025431970,-151.0,0.00014626,2]
[405343113,1771025431985,-151.0,0.00014626,2]
[405343114,1771025431995,-151.0,0.00014626,2]
[405343115,1771025432005,-736.516902,0.00014626,2]
[405343116,1771025432015,-736.516902,0.00014626,2]
[405343117,1771025432025,-736.516902,0.00014626,2]
[405343118,1771025432035,-736.516902,0.00014626,2]
[405343119,1771025432045,-736.516902,0.00014626,2]
[405343120,1771025432054,-736.516902,0.00014626,2]
[405343121,1771025432064,-736.516902,0.00014626,2]
[405343122,1771025432074,-736.516902,0.00014626,2]
[405343123,1771025432083,-540.4,0.00014626,2]
[405343124,1771025432093,-1082.68887,0.00014626,2]
[405343125,1771025432103,-1082.68887,0.00014626,2]
[405343126,1771025432112,-1082.68887,0.00014626,2]
[405343127,1771025432122,-1082.68887,0.00014626,2]
[405343128,1771025432132,-500.0,0.00014626,2]
[405343129,1771025432141,-500.0,0.00014626,2]
[405343130,1771025432151,-1000.0,0.00014626,2]
[405343131,1771025432160,-1000.0,0.00014626,2]
[405343132,1771025432169,-1000.0,0.00014626,2]
[405343133,1771025432179,-1000.0,0.00014626,2]
[405343134,1771025432189,-1000.0,0.00014626,2]
[405343135,1771025432198,-1000.0,0.00014626,2]
[405343136,1771025432208,-1000.0,0.00014626,2]
[405343137,1771025432217,-1000.0,0.00014626,2]
[405343138,1771025432227,-1000.0,0.00014626,2]
[405343139,1771025432237,-1000.0,0.00014626,2]
[405343140,1771025432247,-1000.0,0.00014626,2]
[405343141,1771025432257,-1000.0,0.00014626,2]
[405343142,1771025432266,-1000.0,0.00014626,2]
[405343143,1771025432275,-409.851068,0.00014626,2]
[405343144,1771025432285,-151.0,0.00014626,2]
[405343145,1771025432295,-151.0,0.00014626,2]
[405343146,1771025432304,-151.0,0.00014626,2]
[405343147,1771025432314,-151.0,0.00014626,2]
[405343148,1771025432323,-151.0,0.00014626,2]
[405343149,1771025432332,-151.0,0.00014626,2]
[405343150,1771025432342,-151.0,0.00014626,2]
[405343151,1771025432352,-151.0,0.00014626,2]
[405343152,1771025432362,-151.0,0.00014626,2]
[405343153,1771025432372,-151.0,0.00014626,2]
[405343154,1771025432382,-267.566435,0.00014626,2]
[405343155,1771025432391,-474.55514424,0.00014626,2]
[405343156,1771025432401,-1286.656699,0.00014626,2]
[405343157,1771025432411,-1286.656699,0.00014626,2]
[405343158,1771025432420,-1286.656699,0.00014626,2]
[405343159,1771025432429,-1286.656699,0.00014626,2]
[405343160,1771025432439,-1286.656699,0.00014626,2]
[405343161,1771025432448,-1286.656699,0.00014626,2]
[405343162,1771025432458,-1286.656699,0.00014626,2]
[405343163,1771025432467,-1286.656699,0.00014626,2]
[405343164,1771025432477,-1286.656699,0.00014626,2]
[405343165,1771025432487,-1286.656699,0.00014626,2]
[405343166,1771025432497,-1286.656699,0.00014626,2]
[405343167,1771025432506,-1286.656699,0.00014626,2]
[405343168,1771025432516,-4283.65,0.00014626,2]
[405343169,1771025432526,-4283.65,0.00014626,2]
[405343170,1771025432535,-1286.656699,0.00014626,2]
[405343171,1771025432545,-1286.656699,0.00014626,2]
[405343172,1771025432555,-1286.656699,0.00014626,2]
[405343173,1771025432564,-1286.656699,0.00014626,2]
[405343174,1771025432574,-1079.85,0.00014626,2]
[405343175,1771025432583,-500.0,0.00014626,2]
[405343176,1771025432593,-394969.2194819,0.00014627,2]
[405343177,1771025432606,-10345.668025,0.00014627,2]
[405343178,1771025432617,-4092.1719118,0.00014627,2]
[405343179,1771025432626,-157.25007,0.00014627,2]
[405343180,1771025432636,-157.25007,0.00014627,2]
[405343181,1771025432645,-157.25007,0.00014627,2]
[405343182,1771025432655,-157.25007,0.00014627,2]